Cogmind - Beta 13 @@@ ROGUE MODE // 2024.03.30 @ 22:00:14 Player: darki Result: Destroyed by P-80 Master with Gamma Rifle Performance ------------- Evolutions (7) 3500 Regions Visited (17) 3400 Robots Destroyed (120) 600 Value Destroyed (4739) 4739 Prototype IDs (41) 820 Alien Tech Used (1) 200 Bonus (2498) 2498 TOTAL SCORE: 15757 Bonus ------- High Alert Combat Kills 604 Follower Combat Kills 871 Entered DSFs 500 Aligned with FarCom 300 Met Zhirov 300 Met R17 at Cetus 500 Friendly Fire -577 Cogmind --------- Core Integrity 0/1300 Matter 290/300 Energy 82/100 System Corruption 11% Temperature Cool (2) Movement Walking (110) Location -3/Research Parts ------- > --- POWER (1) -------- (None) > --- PROPULSION (2) --- Biometal Leg > --- UTILITY (15) ----- Enhanced Optical Array Advanced Signal Interpreter Advanced Terrain Scan Processor Advanced Terrain Scan Processor Improved Launcher Guidance Computer Improved Launcher Guidance Computer Graphene Brace > --- WEAPON (3) ------- (None) > --- INVENTORY (5) ---- Advanced Transmission Jammer Transdimensional Reconstructor Peak State ------------ > --- POWER ------------ Mini Fusion Reactor > --- PROPULSION ------- Cooled Gravmag System Cooled Gravmag System > --- UTILITY ---------- Advanced Heat Sink Enhanced Optical Array Advanced Sensor Array Improved Targeting Computer Improved Melee Analysis Suite Advanced Melee Analysis Suite Improved Launcher Guidance Computer Improved Launcher Guidance Computer Advanced Transmission Jammer Improved Reaction Control System Graphene Brace System Shield Advanced System Shield > --- WEAPON ----------- AWS/Autocannon > --- INVENTORY -------- Advanced Signal Interpreter Transdimensional Reconstructor Hardcell Cannon Hardcell Cannon Force Lance [Rating: 122] Favorites ----------- Power Ion Engine Engine Ion Engine Power Core Neutrino Core Reactor Mini Fusion Reactor Propulsion Aluminum Leg Leg Aluminum Leg Wheel Wheel Hover Unit Cooled Gravmag System Flight Unit Field Propulsion Drive Utility Improved Medium Armor Plating Device Advanced Heat Sink Storage Small Storage Unit Processor Enhanced Optical Array Hackware System Shield Protection Improved Medium Armor Plating Weapon Shotgun Energy Gun Advanced Variable Charge Gun Energy Cannon Improved EM Pulse Cannon Ballistic Gun Shotgun Ballistic Cannon Magnetic Acceleration Cannon Launcher Grenade Launcher Impact Weapon Flail Slashing Weapon Phasing Sabre Piercing Weapon Spear Special Melee Weapon Improved Datajack Build | -11 -10 -10 -10 -9 -8 -7 -7 -6 -5 -5 -5 -5 -4 -4 -4 -4 -3 ------- Run | Yrd Mat Min Exi Min Mat Fac DSF Fac Fac Upp Upp Zhi Pro Fac Ext Cet Res Slots Evolved 14 | . . . . . 4 2 . 2 2 . . . . 2 . . 2 Power . | . . . . . . . . . . . . . . . . . . Propulsion . | . . . . . . . . . . . . . . . . . . Utility 13 | . . . . . 3 2 . 2 2 . . . . 2 . . 2 Weapon 1 | . . . . . 1 . . . . . . . . . . . . Parts Attached 156 | . 9 3 1 6 14 1 6 9 2 3 7 9 . 16 27 33 10 Power 9 | . 1 . . 1 . . . 1 . . 1 . . 1 . 3 1 Engine 4 | . 1 . . 1 . . . 1 . . 1 . . . . . . Core 3 | . . . . . . . . . . . . . . . . 2 1 Reactor 2 | . . . . . . . . . . . . . . 1 . 1 . Propulsion 26 | . . 3 . . 1 . . 2 . . 3 2 . 1 . 10 4 Treads . | . . . . . . . . . . . . . . . . . . Leg 12 | . . 3 . . . . . . . . 2 . . . . 6 1 Wheel 3 | . . . . . . . . 2 . . 1 . . . . . . Hover 4 | . . . . . 1 . . . . . . 2 . 1 . . . Flight 7 | . . . . . . . . . . . . . . . . 4 3 Utility 61 | . 2 . 1 2 2 1 6 3 2 . 1 6 . 3 16 12 4 Device 22 | . 1 . . . 1 . . 2 2 . . 3 . 2 4 5 2 Storage 2 | . . . 1 . . . . . . . . 1 . . . . . Processor 15 | . . . . . . . . 1 . . . . . 1 7 4 2 Hackware 4 | . . . . . . 1 . . . . . 1 . . . 2 . Protection 18 | . 1 . . 2 1 . 6 . . . 1 1 . . 5 1 . Artifact . | . . . . . . . . . . . . . . . . . . Weapon 60 | . 6 . . 3 11 . . 3 . 3 2 1 . 11 11 8 1 Energy Gun 7 | . . . . . 1 . . . . . . . . . 2 3 1 Energy Cannon 13 | . . . . . 6 . . 1 . 1 . . . 5 . . . Ballistic Gun 6 | . 4 . . 1 . . . . . . . . . . . 1 . Ballistic Cannon 16 | . . . . . . . . 1 . . . 1 . 5 6 3 . Launcher 9 | . 2 . . 2 3 . . . . 1 1 . . . . . . Special Weapon . | . . . . . . . . . . . . . . . . . . Impact Weapon 1 | . . . . . . . . 1 . . . . . . . . . Slashing Weapon 4 | . . . . . . . . . . 1 1 . . . 2 . . Piercing Weapon 3 | . . . . . 1 . . . . . . . . . 1 1 . Special Melee Weapon 1 | . . . . . . . . . . . . . . 1 . . . Unidentified Prototypes 8 | . . . . . 1 . . . . . . 4 . 1 . 2 . Corrupted Parts 1 | . . . . . . . . . . . . . . . . 1 . System Corruption 1 | . . . . . . . . . . . . . . . . 1 . Parts Lost 60 | . . . . 6 8 . . . . 2 2 . 4 1 8 16 13 Power 7 | . . . . 1 1 . . . . 1 . . 1 . . 2 1 Propulsion 10 | . . . . . 2 . . . . 1 . . 1 . . 4 2 Utility 31 | . . . . 2 3 . . . . . 1 . 1 1 8 6 9 Weapon 12 | . . . . 3 2 . . . . . 1 . 1 . . 4 1 Highest Loss Streak 11 | . . . . 3 7 . . . . 1 1 . 3 1 3 10 11 To Critical Strikes . | . . . . . . . . . . . . . . . . . . Average Slot Usage (%) 85 | . 94 100 100 93 66 19 51 84 100 94 92 88 65 60 79 78 74 Engine 5 | . 14 14 14 12 7 . . 2 5 . 2 5 2 . . . . Leg 9 | . 28 28 28 28 11 . . . . . 2 3 . . . 5 . Wheel 2 | . . . . . . . . 6 11 10 4 3 . . . . . Hover 2 | . . . . . . 7 7 2 . . . 3 10 10 10 2 . Device 12 | . 6 . . . 6 . . 5 17 17 17 17 23 27 24 16 10 Storage 4 | . 14 14 14 14 7 . . . . . . . . . . . . Processor 9 | . . . . . . . . 4 5 5 5 5 5 6 12 31 39 Hackware 5 | . . . . . . 3 7 6 5 5 5 6 11 10 10 8 10 Protection 14 | . 2 14 14 14 14 . 28 40 35 35 34 25 4 . 6 1 . Energy Cannon 1 | . . . . . 14 . . 2 5 1 5 3 . . . . . Ballistic Gun 7 | . 17 28 28 16 . . . . . . . . . . . . . Ballistic Cannon 2 | . . . . . . . . 3 5 5 5 3 . . 3 3 . Launcher 1 | . 9 . . 6 3 . . . . 3 . . . . . . . Naked Turns 12 | . . . . . 12 . . . . . . . . . . . . Heaviest Build 95 | 14 23 23 38 38 62 2 44 63 65 65 70 70 20 73 95 78 14 Greatest Support 45 | 20 20 20 20 20 20 6 6 20 20 20 30 22 32 22 32 45 28 Greatest Overweight (x) 10 | . 1 1 1 1 10 . 7 7 3 6 6 6 3 3 4 6 1 Average Overweight (x) 1 | . . 1 1 1 1 . 1 3 3 3 5 2 . . 1 1 . Largest Inventory Capacity 15 | 8 8 8 15 15 15 5 5 5 5 5 5 5 5 5 5 5 5 Average Capacity 6 | 8 8 8 8 15 13 5 5 5 5 5 5 5 5 5 5 5 5 Most Carried 9 | 6 8 8 8 9 6 5 5 5 4 5 5 5 5 5 5 5 4 Average Carried 5 | 6 7 7 7 7 5 5 5 4 3 4 4 4 5 4 4 3 3 Final Capacity 15 | 8 8 8 15 15 5 5 5 5 5 5 5 5 5 5 5 5 5 Final Carried 8 | 6 8 8 8 6 5 5 5 5 3 5 5 5 5 5 5 4 2 Class Distribution -------------------- 51% | Mutant 9% | Scavenger-Assassin 7% | Hacker-Mutant 6% | Hacker-Gunner 5% | Hacker-Scout 5% | Scavenger-Mutant 4% | Scavenger-Scout 3% | Tank Dominant Class ---------------- Mutant | -10/Materials Mutant | -10/Mines Mutant | -10/Exiles Mutant | -9/Mines Tank | -8/Materials Tank | -7/Factory Mutant | -7/DSF Mutant | -6/Factory Scavenger-Assassin | -5/Factory Mutant | -5/Upper Caves Mutant | -5/Upper Caves Mutant | -5/Zhirov Hacker-Mutant | -4/Proximity Caves Hacker-Scout | -4/Factory Scavenger-Assassin | -4/Extension Hacker-Gunner | -4/Cetus Scavenger-Scout | -3/Research Resources | -11 -10 -10 -10 -9 -8 -7 -7 -6 -5 -5 -5 -5 -4 -4 -4 -4 -3 ----------- Run | Yrd Mat Min Exi Min Mat Fac DSF Fac Fac Upp Upp Zhi Pro Fac Ext Cet Res Matter Collected 2701 | 200 200 328 . 70 356 . 2 51 . 224 244 100 . 120 453 325 28 Remotely . | . . . . . . . . . . . . . . . . . . Salvage Created 3771 | . 372 212 . 60 466 . . 51 . 182 275 383 . 110 783 877 . Parts 202 | . 38 11 . 7 35 . . 8 . 7 9 8 . 10 31 38 . Haulers Intercepted 1 | . . . . . 1 . . . . . . . . . . . . Recyclers Shooed 2 | . 1 . . . 1 . . . . . . . . . . . . Parts Field Recycled . | . . . . . . . . . . . . . . . . . . Retrieved Matter . | . . . . . . . . . . . . . . . . . . Parts Self-Destructed 19 | . . . . . . . . . . 7 8 4 . . . . . Prevented . | . . . . . . . . . . . . . . . . . . Kills | -11 -10 -10 -10 -9 -8 -7 -7 -6 -5 -5 -5 -5 -4 -4 -4 -4 -3 ------- Run | Yrd Mat Min Exi Min Mat Fac DSF Fac Fac Upp Upp Zhi Pro Fac Ext Cet Res Combat Hostiles Destroyed 101 | . 16 6 . 11 15 . . . . 4 6 . . 3 15 25 . Melee 8 | . . . . . . . . . . . 3 . . . 1 4 . Guns 18 | . 3 6 . 2 . . . . . . . . . . . 7 . Cannons 34 | . . . . . 1 . . . . 1 2 . . 3 14 13 . AOE 40 | . 13 . . 9 14 . . . . 3 1 . . . . . . Classes Destroyed 16 | . 6 1 . 2 1 . . . . 1 . . . 1 3 1 . Worker 3 | . 2 . . . 1 . . . . . . . . . . . . Builder 6 | . . . . 1 3 . . 2 . . . . . . . . . Hauler 1 | . . . . . 1 . . . . . . . . . . . . Recycler 2 | . 1 . . . 1 . . . . . . . . . . . . Operator 4 | . 2 . . . 1 . . . . . . . . 1 . . . Watcher 7 | . 2 . . . 1 . . . . . . . . . 2 2 . Swarmer 35 | . 9 . . 4 5 . . . . . . . . . 6 11 . Grunt 38 | . 7 5 . . 10 . . . . 3 6 . . . 4 3 . Brawler 1 | . . . . . . . . . . 1 . . . . . . . Duelist 1 | . . . . . . . . . . . . . . . . 1 . Sentry 4 | . . . . . . . . . . . . . . . 4 . . Demolisher 1 | . . . . 1 . . . . . . . . . . . . . Hunter 2 | . . . . . . . . . . . . . . . . 2 . Programmer 4 | . . . . . . . . . . . . . . 3 . 1 . Behemoth 1 | . . . . . . . . . . . . . . . 1 . . Cetus Guard 7 | . . . . . . . . . . . . . . . . 7 . Assembled 7 | . . 1 . 6 . . . . . . . . . . . . . Savage 2 | . . . . . . . . . . . . . . . 2 . . Butcher 1 | . . . . . . . . . . . . . . . 1 . . Best Kill Streak 13 | . 6 2 . 5 13 . . 1 . 4 2 . . 2 7 5 . Combat Bots Only 8 | . 4 2 . 4 8 . . . . 4 2 . . 2 6 5 . Max Kills in Single Turn 4 | . 4 1 . 3 3 . . 1 . 2 1 . . 1 1 1 . Gunslinging . | . . . . . . . . . . . . . . . . . . Exploded 3 | . 3 . . 3 3 . . . . 2 1 . . . . . . Melee 1 | . . . . . . . . . . . 1 . . . 1 1 . Uniques/NPCs Destroyed . | . . . . . . . . . . . . . . . . . . Combat | -11 -10 -10 -10 -9 -8 -7 -7 -6 -5 -5 -5 -5 -4 -4 -4 -4 -3 -------- Run | Yrd Mat Min Exi Min Mat Fac DSF Fac Fac Upp Upp Zhi Pro Fac Ext Cet Res Hostile Shots Fired 827 | . 30 12 . 38 84 . 2 . . 44 56 . 43 6 97 233 182 Missed 236 | . 12 5 . 6 20 . 1 . . 13 14 . 14 3 20 49 79 Damage Taken 11168 | . 150 88 . 889 989 . 44 33 . 610 856 . 598 65 1580 3214 2052 Core 2897 | . . . . 132 339 . 44 . . . 42 . 134 22 217 645 1322 Absorbed by Shields 291 | . . . . . 77 . . . . . . . . . 152 . 62 Redirected to Shielding 161 | . . . . . . . . . . . . . 161 . . . . Ignored by Resistances 120 | . . . . . . . . . . . . . . . 120 . . Core Remaining (%) 69 | 100 . . . 47 38 . 93 100 . . . . 82 . . 23 . Volleys Fired 198 | 1 25 13 . 18 19 . . 2 . 6 20 . . 7 29 35 23 Largest 2 | 2 2 2 . 2 2 . . 1 . 2 2 . . 1 2 2 1 Hottest 240 | 40 50 46 . 53 138 . . 69 . 122 122 . . 105 140 240 240 Shots Fired 363 | 2 34 26 . 26 20 . . 2 . 10 24 . . 15 64 117 23 Gun 133 | 2 20 26 . 17 . . . . . . . . . . 4 41 23 Cannon 188 | . . . . . 6 . . 2 . 8 21 . . 15 60 76 . Launcher 42 | . 14 . . 9 14 . . . . 2 3 . . . . . . Special . | . . . . . . . . . . . . . . . . . . Kinetic 239 | 2 20 26 . 17 . . . 1 . 6 20 . . 9 60 78 . Thermal 72 | . . . . . . . . . . . . . . 6 4 39 23 Explosive 42 | . 14 . . 9 14 . . . . 2 3 . . . . . . Electromagnetic 10 | . . . . . 6 . . 1 . 2 1 . . . . . . Robot Hit Streak 27 | 1 8 7 . 4 15 . . . . 3 9 . . 13 22 27 . Robot Miss Streak 5 | 1 2 5 . 4 1 . . . . 2 3 . . . 4 3 1 Penetration Max . | . . . . . . . . . . . . . . . . . . Secondary Targets 1 | . . . . 1 . . . . . . . . . . . . . Max Gunslinging Chain 1 | . . . . 1 . . . . . . . . . . . . . Autonomous 118 | . . . . . . . . . . . . . . 8 33 77 . Shots Hit Robots 276 | 1 17 19 . 18 15 . . 2 . 6 28 8 1 8 53 100 . Core Hits 192 | . 29 13 . 22 42 . . 1 . 9 11 3 1 2 22 37 . Critical Kills . | . . . . . . . . . . . . . . . . . . Critical Parts Destroyed 1 | . 1 . . . . . . . . . . . . . . . . Critical Strikes 22 | . 1 . . . 1 . . 1 . 1 3 . . 1 6 8 . Destroy 1 | . 1 . . . . . . . . . . . . . . . . Blast 11 | . . . . . . . . . . . . . . 1 6 4 . Corrupt 2 | . . . . . 1 . . . . 1 . . . . . . . Sever 3 | . . . . . . . . . . . 3 . . . . . . Impale 5 | . . . . . . . . 1 . . . . . . . 4 . Melee Attacks 66 | . . . . . 2 . 2 6 . . 12 8 3 . 3 30 . Impact . | . . . . . . . . . . . . . . . . . . Slashing 24 | . . . . . . . . . . . 12 8 3 . 1 . . Piercing 42 | . . . . . 2 . 2 6 . . . . . . 2 30 . Sneak Attacks 4 | . . . . . 2 . . 2 . . . . . . . . . Combat Hostiles . | . . . . . . . . . . . . . . . . . . Follow-up Attacks . | . . . . . . . . . . . . . . . . . . Damage Inflicted 16560 | 13 984 280 . 727 1978 . . 98 . 439 1127 809 43 828 3560 5654 20 Guns 1355 | 13 150 280 . 197 . . . . . . . . . . 72 643 . Cannons 9090 | . . . . . 90 . . . . 154 453 . . 828 3403 4162 . Explosions 3619 | . 831 . . 530 1758 . . . . 285 215 . . . . . . Melee 2455 | . . . . . 125 . . 98 . . 459 809 36 . 85 843 . Ramming 41 | . 3 . . . 5 . . . . . . . 7 . . 6 20 Kinetic 9549 | 13 150 280 . 197 . . . . . 91 425 . . 828 3403 4162 . Thermal 715 | . . . . . . . . . . . . . . . 72 643 . Explosive 3619 | . 831 . . 530 1758 . . . . 285 215 . . . . . . Electromagnetic 181 | . . . . . 90 . . . . 63 28 . . . . . . Impact . | . . . . . . . . . . . . . . . . . . Slashing 1304 | . . . . . . . . . . . 459 809 36 . . . . Piercing 1151 | . . . . . 125 . . 98 . . . . . . 85 843 . Highest Corruption 11 | . . . . . 5 . . . . . . . 4 . 1 6 11 Average Corruption 2 | . . . . . 5 . . . . . . . 4 . 1 3 4 Corruption Purged . | . . . . . . . . . . . . . . . . . . Corruption Blocked . | . . . . . . . . . . . . . . . . . . Effects 33 | . . . . . 6 . . . . . . . . . 8 17 2 Message Errors 10 | . . . . . 2 . . . . . . . . . 3 5 . Matter Fused 7 | . . . . . . . . . . . . . . . 3 4 . Heat Flow Errors 1 | . . . . . . . . . . . . . . . 1 . . Energy Discharges 3 | . . . . . 1 . . . . . . . . . . 2 . Parts Rejected 1 | . . . . . . . . . . . . . . . . 1 . Parts Fused 1 | . . . . . . . . . . . . . . . . 1 . Data Loss (minor) 6 | . . . . . 1 . . . . . . . . . 1 2 2 Data Loss (major) 2 | . . . . . 2 . . . . . . . . . . . . Misfires 1 | . . . . . . . . . . . . . . . . 1 . Alerts 1 | . . . . . . . . . . . . . . . . 1 . Overload Shots 23 | . . . . . . . . . . . . . . . . 8 15 Overflow Damage 1446 | . 2 . . 40 98 . . 46 . . 24 348 . 248 195 445 . Projectiles 823 | . . . . . . . . . . . . . . 248 195 380 . Explosions 98 | . 2 . . 40 56 . . . . . . . . . . . . Melee 525 | . . . . . 42 . . 46 . . 24 348 . . . 65 . Knockbacks 38 | . . . . . . . . . . . 3 . . 4 18 13 . Impact . | . . . . . . . . . . . . . . . . . . Kinetic 32 | . . . . . . . . . . . 3 . . 4 14 11 . Secondary 6 | . . . . . . . . . . . . . . . 4 2 . Self-Inflicted Damage 255 | . . . . 126 69 . . . . . 46 . 3 . . 2 9 Shots 9 | . . . . 5 3 . . . . . 1 . . . . . . Rammed 14 | . . . . . . . . . . . . . 2 . . 6 6 Targets Rammed 16 | . 1 . . . 1 . . . . . . . 2 . . 6 6 Kicked 2 | . 1 . . . 1 . . . . . . . . . . . . Crushed . | . . . . . . . . . . . . . . . . . . Highest Temperature 290 | . 2 6 . 13 93 . . 28 . 21 6 . . . 228 290 260 Average Temperature 76 | . 2 3 . 5 45 . . 11 . 11 4 . . . 129 151 89 Received Heat Transfer 1669 | . 30 24 . 80 476 . . . . 153 357 . 182 . 181 144 42 Siege Activations . | . . . . . . . . . . . . . . . . . . Robots Corrupted . | . . . . . . . . . . . . . . . . . . Combat Hostiles . | . . . . . . . . . . . . . . . . . . Parts Fried 2 | . . . . . . . . . . . . . . . 2 . . Impact Corruptions 2 | . . . . . . . . . . . . . . . 2 . . Robots Melted . | . . . . . . . . . . . . . . . . . . Combat Hostiles . | . . . . . . . . . . . . . . . . . . Parts Melted 3 | . . . . . . . . . . . . . . . 1 2 . Heat Transferred 1027 | . . . . . . . . . . . . . . . 174 853 . Parts Sabotaged . | . . . . . . . . . . . . . . . . . . Parts Stolen . | . . . . . . . . . . . . . . . . . . Parts Stripped . | . . . . . . . . . . . . . . . . . . Power Chain Reactions . | . . . . . . . . . . . . . . . . . . Alert | -11 -10 -10 -10 -9 -8 -7 -7 -6 -5 -5 -5 -5 -4 -4 -4 -4 -3 ------- Run | Yrd Mat Min Exi Min Mat Fac DSF Fac Fac Upp Upp Zhi Pro Fac Ext Cet Res Peak Influence 685 | . 598 220 . 195 529 217 171 100 13 . . . . 216 654 685 506 Initial 353 | . . 160 . . 55 217 155 89 . . . . . 116 26 353 348 Average 274 | . 350 76 . 171 378 217 164 52 5 . . . . 116 461 530 414 Maximum Alert Level 2 | . 2 1 . . 2 1 . . . . . . . 1 2 2 2 Low Security (%) 49 | 100 13 95 . 100 10 . 100 100 100 . . . . 86 9 . . Level 1 14 | . 48 4 . . 37 100 . . . . . . . 13 20 5 34 Level 2 36 | . 38 . . . 51 . . . . . . . . . 70 94 65 Level 3 . | . . . . . . . . . . . . . . . . . . Level 4 . | . . . . . . . . . . . . . . . . . . Level 5 . | . . . . . . . . . . . . . . . . . . High Security . | . . . . . . . . . . . . . . . . . . Max Security . | . . . . . . . . . . . . . . . . . . Squads Dispatched 12 | . 4 . . . 2 . . . 1 . . . . 2 1 . 2 Investigation 3 | . 1 . . . . . . . 1 . . . . . . . 1 Extermination 2 | . . . . . . . . . . . . . . 2 . . . Reinforcement 6 | . 3 . . . 2 . . . . . . . . . . . 1 Assault 1 | . . . . . . . . . . . . . . . 1 . . Garrison . | . . . . . . . . . . . . . . . . . . Intercept . | . . . . . . . . . . . . . . . . . . Searches Triggered . | . . . . . . . . . . . . . . . . . . Construction Impeded 1 | . . . . . 1 . . . . . . . . . . . . Haulers Reinforced . | . . . . . . . . . . . . . . . . . . Active Scanning Responses . | . . . . . . . . . . . . . . . . . . Cargo Convoy Interrupts . | . . . . . . . . . . . . . . . . . . Stealth | -11 -10 -10 -10 -9 -8 -7 -7 -6 -5 -5 -5 -5 -4 -4 -4 -4 -3 --------- Run | Yrd Mat Min Exi Min Mat Fac DSF Fac Fac Upp Upp Zhi Pro Fac Ext Cet Res Distress Signals 9 | . 1 . . . 2 . . . . . . . . . 4 1 1 Communications Jammed 67 | . . . . . . . . . . . . . . . 67 . . Distress Signals 67 | . . . . . . . . . . . . . . . 67 . . Times Spotted 221 | . 29 7 . 17 24 . 1 . . 8 17 . 23 5 36 34 20 Peak Tracking Total 9 | . 6 3 . 7 6 . 1 . . 4 4 . 8 2 6 9 9 Tactical Retreats 27 | . 1 1 . . . . 1 . . 2 7 . 6 . 3 3 3 Traps | -11 -10 -10 -10 -9 -8 -7 -7 -6 -5 -5 -5 -5 -4 -4 -4 -4 -3 ------- Run | Yrd Mat Min Exi Min Mat Fac DSF Fac Fac Upp Upp Zhi Pro Fac Ext Cet Res Traps Triggered 10 | . 1 . . . . . . 1 1 . . . . . 5 . 2 Indirectly . | . . . . . . . . . . . . . . . . . . Trap Hack Attempts . | . . . . . . . . . . . . . . . . . . Triggered . | . . . . . . . . . . . . . . . . . . Disarmed . | . . . . . . . . . . . . . . . . . . Reprogrammed . | . . . . . . . . . . . . . . . . . . Reused . | . . . . . . . . . . . . . . . . . . Traps Extracted . | . . . . . . . . . . . . . . . . . . Installed . | . . . . . . . . . . . . . . . . . . Triggered . | . . . . . . . . . . . . . . . . . . Machines | -11 -10 -10 -10 -9 -8 -7 -7 -6 -5 -5 -5 -5 -4 -4 -4 -4 -3 ---------- Run | Yrd Mat Min Exi Min Mat Fac DSF Fac Fac Upp Upp Zhi Pro Fac Ext Cet Res Machines Disabled 9 | . 2 . . . 2 . . . . . . . . . 1 4 . Max in Single Turn 2 | . 1 . . . 2 . . . . . . . . . 1 1 . Energy Cycler 1 | . . . . . . . . . . . . . . . 1 . . Machines Repaired . | . . . . . . . . . . . . . . . . . . Machines Dismantled . | . . . . . . . . . . . . . . . . . . Machines Sabotaged . | . . . . . . . . . . . . . . . . . . Overloaded Fab Kills . | . . . . . . . . . . . . . . . . . . Hacking | -11 -10 -10 -10 -9 -8 -7 -7 -6 -5 -5 -5 -5 -4 -4 -4 -4 -3 --------- Run | Yrd Mat Min Exi Min Mat Fac DSF Fac Fac Upp Upp Zhi Pro Fac Ext Cet Res Machines Accessed 30 | . 1 1 2 1 . 1 . 1 2 2 . 8 . 2 4 1 4 Terminals 17 | . 1 . . 1 . 1 . 1 2 1 . . . 2 4 1 3 Fabricators 1 | . . . . . . . . . . . . . . . . . 1 Repair Stations . | . . . . . . . . . . . . . . . . . . Recycling Units . | . . . . . . . . . . . . . . . . . . Scanalyzers . | . . . . . . . . . . . . . . . . . . Garrison Access . | . . . . . . . . . . . . . . . . . . Total Hacks 86 | . 1 1 5 2 . 1 . 3 5 2 . 47 . 3 4 1 11 Successful 65 | . . 1 5 1 . 1 . . 2 2 . 47 . 1 1 . 4 Failed 21 | . 1 . . 1 . . . 3 3 . . . . 2 3 1 7 Catastrophic 8 | . 1 . . . . . . 1 . . . . . 1 2 . 3 Database Lockouts . | . . . . . . . . . . . . . . . . . . Manual 18 | . 1 . 1 . . . . 3 4 . . . . 1 . 2 6 Terminals 28 | . 1 . . 2 . 1 . 3 5 1 . . . 3 4 1 7 Fabricators 4 | . . . . . . . . . . . . . . . . . 4 Repair Stations . | . . . . . . . . . . . . . . . . . . Recycling Units . | . . . . . . . . . . . . . . . . . . Scanalyzers . | . . . . . . . . . . . . . . . . . . Garrison Access . | . . . . . . . . . . . . . . . . . . Terminal Hacks 62 | . . 1 5 1 . 1 . . 2 2 . 47 . 1 1 . 1 Record 40 | . . . 4 . . . . . . 1 . 35 . . . . . Part Schematic 4 | . . . . . . . . . . . . 4 . . . . . Robot Analysis 4 | . . . . . . . . . . . . 4 . . . . . Prototype ID Bank 4 | . . . . . . . . . . . . 4 . . . . . Open Door 3 | . . 1 . . . . . . . 1 . . . . 1 . . Open DSF 2 | . . . . . . 1 . . 1 . . . . . . . . Branch Access Points 3 | . . . . . . . . . 1 . . . . 1 . . 1 Investigation Status 1 | . . . . 1 . . . . . . . . . . . . . Derelict Proto ID Bank 1 | . . . 1 . . . . . . . . . . . . . . Fabricator Hacks 1 | . . . . . . . . . . . . . . . . . 1 Network Status 1 | . . . . . . . . . . . . . . . . . 1 Repair Station Hacks . | . . . . . . . . . . . . . . . . . . Recycling Unit Hacks . | . . . . . . . . . . . . . . . . . . Scanalyzer . | . . . . . . . . . . . . . . . . . . Garrison Access Hacks . | . . . . . . . . . . . . . . . . . . Unauthorized Hacks 2 | . . . . . . . . . . . . . . . . . 2 Terminals 2 | . . . . . . . . . . . . . . . . . 2 Botnet 2 | . . . . . . . . . . . . . . . . . 2 Fabricators . | . . . . . . . . . . . . . . . . . . Repair Stations . | . . . . . . . . . . . . . . . . . . Recycling Units . | . . . . . . . . . . . . . . . . . . Scanalyzers . | . . . . . . . . . . . . . . . . . . Garrison Access . | . . . . . . . . . . . . . . . . . . Data Cores Recovered 1 | . . . . . . . . . . . . . . 1 . . . Used . | . . . . . . . . . . . . . . . . . . Hacking Detections 12 | . 1 . . 1 . . . 1 1 . . . . 1 3 . 4 Full Trace Events 2 | . . . . . . . . . 1 . . . . . . . 1 Feedback Events . | . . . . . . . . . . . . . . . . . . Feedback Blocked . | . . . . . . . . . . . . . . . . . . Robot Schematics Acquired . | . . . . . . . . . . . . . . . . . . Robots Built . | . . . . . . . . . . . . . . . . . . Authchips . | . . . . . . . . . . . . . . . . . . Time . | . . . . . . . . . . . . . . . . . . Total Robot Build Rating . | . . . . . . . . . . . . . . . . . . Part Schematics Acquired 4 | . . . . . . . . . . . . 4 . . . . . Parts Built . | . . . . . . . . . . . . . . . . . . Authchips . | . . . . . . . . . . . . . . . . . . Time . | . . . . . . . . . . . . . . . . . . Total Part Build Rating . | . . . . . . . . . . . . . . . . . . Parts Repaired . | . . . . . . . . . . . . . . . . . . Time . | . . . . . . . . . . . . . . . . . . Parts Recycled . | . . . . . . . . . . . . . . . . . . Recycled Matter . | . . . . . . . . . . . . . . . . . . Retrieved Matter . | . . . . . . . . . . . . . . . . . . Retrieved Components . | . . . . . . . . . . . . . . . . . . Parts Scanalyzed . | . . . . . . . . . . . . . . . . . . Part Schematics Acquired . | . . . . . . . . . . . . . . . . . . Parts Damaged . | . . . . . . . . . . . . . . . . . . Bothacking | -11 -10 -10 -10 -9 -8 -7 -7 -6 -5 -5 -5 -5 -4 -4 -4 -4 -3 ------------ Run | Yrd Mat Min Exi Min Mat Fac DSF Fac Fac Upp Upp Zhi Pro Fac Ext Cet Res Used RIF Installer . | . . . . . . . . . . . . . . . . . . Robots Hacked . | . . . . . . . . . . . . . . . . . . Non-combat . | . . . . . . . . . . . . . . . . . . Combat . | . . . . . . . . . . . . . . . . . . Robot Hacks Applied . | . . . . . . . . . . . . . . . . . . Relay Couplers Released 4 | . . . . . . . . . . . . . . 4 . . . Programmers 4 | . . . . . . . . . . . . . . 4 . . . Fabnet Peak Effective % . | . . . . . . . . . . . . . . . . . . Robots Rewired 14 | . . . . . . . . . . . . . . . 14 . . Allies Hacked . | . . . . . . . . . . . . . . . . . . Hacks Repelled . | . . . . . . . . . . . . . . . . . . Allies | -11 -10 -10 -10 -9 -8 -7 -7 -6 -5 -5 -5 -5 -4 -4 -4 -4 -3 -------- Run | Yrd Mat Min Exi Min Mat Fac DSF Fac Fac Upp Upp Zhi Pro Fac Ext Cet Res Total Allies 24 | . . 3 . . . . . . . . . . . . 21 . . Largest Group 8 | . . 3 3 2 . . . . . . . . . . 8 2 . Highest-Rated Group 427 | . . 40 40 24 . . . . . . . . . . 427 92 . Highest-Rated Ally 159 | . . 16 16 16 . . . . . . . . . . 159 46 . Total Orders . | . . . . . . . . . . . . . . . . . . Ally Attacks 150 | . . . . 16 . . . . . . . . . . 127 7 . Total Damage 3987 | . . . . 139 . . . . . . . . . . 3674 174 . Kills 28 | . . . . 4 . . . . . . . . . . 23 1 . Allies Corrupted . | . . . . . . . . . . . . . . . . . . Allies Melted 2 | . . . . . . . . . . . . . . . 2 . . Intel | -11 -10 -10 -10 -9 -8 -7 -7 -6 -5 -5 -5 -5 -4 -4 -4 -4 -3 ------- Run | Yrd Mat Min Exi Min Mat Fac DSF Fac Fac Upp Upp Zhi Pro Fac Ext Cet Res Robot Analysis Total 4 | . . . . . . . . . . . . 4 . . . . . Derelict Logs Recovered 4 | . . 1 . . . . . . . 1 2 . . . . . . Drone Launches . | . . . . . . . . . . . . . . . . . . Drone Recoveries . | . . . . . . . . . . . . . . . . . . Exploration | -11 -10 -10 -10 -9 -8 -7 -7 -6 -5 -5 -5 -5 -4 -4 -4 -4 -3 ------------- Run | Yrd Mat Min Exi Min Mat Fac DSF Fac Fac Upp Upp Zhi Pro Fac Ext Cet Res Turns Passed 8402 | 3 538 1187 466 303 338 15 85 704 208 616 498 273 221 539 947 1027 434 Spaces Moved 5313 | 1 327 411 244 121 149 22 46 354 159 455 228 211 407 627 547 394 610 Core 203 | . . . . . 42 . . . . . . . 2 . . 21 138 Treads . | . . . . . . . . . . . . . . . . . . Legs 1432 | 1 327 411 244 121 60 . . . . . 12 . . . . 255 1 Wheels 1229 | . . . . . . . . 298 159 455 216 101 . . . . . Hover 1912 | . . . . . 47 22 46 56 . . . 110 405 627 547 52 . Flight 537 | . . . . . . . . . . . . . . . . 66 471 Fastest Speed 32 | 120 120 190 190 190 50 60 60 110 125 125 155 46 38 46 46 32 35 Average Speed 120 | 120 129 190 190 190 172 60 163 183 125 125 172 108 43 54 105 185 44 Slowest Speed 550 | 120 190 190 190 190 550 60 480 480 125 170 400 350 200 196 246 350 125 Overloaded Moves 187 | . . . . . . . . . . . . . 179 . 8 . . Propulsion Burnouts . | . . . . . . . . . . . . . . . . . . Robots Hopped 4 | . . . . . . . . . . . . . . . . . 4 Cave-ins Triggered . | . . . . . . . . . . . . . . . . . . Exploration Rate (%) 39 | 2 59 71 59 20 19 1 45 9 8 50 47 63 64 20 77 70 22 Regions Visited 17 Branch Regions 9 Pre-discovered Areas 5 | . . . 1 . . . . . . 1 . 3 . . . . . Known Exits Taken 4 | . . . . . . 1 . . 1 . . . . 1 . 1 . Unknown Exits Taken 12 | 1 1 1 1 1 1 . . 1 . 1 1 1 1 . 1 . . Scrap Searched 1 | . . . . . . . . . . 1 . . . . . . . Spaces Dug 42 | . . . . 11 . . 1 2 . . . . 2 6 1 . 19 Terrain Destroyed 380 | . 81 . . 73 79 . 1 2 . 24 60 . 2 6 9 24 19 Melee 6 | . . . . . . . 1 2 . . . . 2 . 1 . . Projectile 64 | . . . . . . . . . . 1 6 . . 6 8 24 19 AOE 310 | . 81 . . 73 79 . . . . 23 54 . . . . . . Terrain Rammed . | . . . . . . . . . . . . . . . . . . Walls Destroyed . | . . . . . . . . . . . . . . . . . . Machines Disabled . | . . . . . . . . . . . . . . . . . . Actions | -11 -10 -10 -10 -9 -8 -7 -7 -6 -5 -5 -5 -5 -4 -4 -4 -4 -3 --------- Run | Yrd Mat Min Exi Min Mat Fac DSF Fac Fac Upp Upp Zhi Pro Fac Ext Cet Res Total 6947 | 1 409 794 249 167 199 22 53 394 168 491 290 246 446 815 877 581 745 Wait 882 | . 27 363 . 22 10 . . 19 . 23 21 . 35 155 58 57 92 Move 5289 | . 326 410 243 120 148 21 45 353 158 454 227 210 406 626 546 393 603 Hop 3 | . . . . . . . . . . . . . . . . . 3 Pick Up 25 | . 9 1 1 1 . . . 1 . 2 1 2 . . 1 6 . Fast Attach 109 | . 5 . . 1 8 1 6 8 . 2 4 10 . 8 22 26 8 Attach 30 | . . . . 3 2 . . . 2 1 2 . . 8 5 5 2 Detach 19 | . 1 . . . 1 . . 1 . 1 1 . . 8 4 2 . Swap 18 | . 4 3 1 2 4 . . 1 . . 1 . . . . 2 . Drop 77 | . 11 4 4 . 4 . . 3 . 2 1 16 . 3 8 19 2 Fire 198 | 1 25 13 . 18 19 . . 2 . 6 20 . . 7 29 35 23 Melee 66 | . . . . . 2 . 2 6 . . 12 8 3 . 3 30 . Ram 14 | . . . . . . . . . . . . . 2 . . 6 6 Kick 2 | . 1 . . . 1 . . . . . . . . . . . . Crush . | . . . . . . . . . . . . . . . . . . Escape Stasis 46 | . . . . . . . . . 8 . . . . . 32 . 6 Rewire 169 | . . . . . . . . . . . . . . . 169 . . Trap . | . . . . . . . . . . . . . . . . . . Miscellaneous . | . . . . . . . . . . . . . . . . . . Route ------- -11/Scrapyard -10/Materials (discovered 3 exits: [*Mat] / *Min x2) -10/Mines (discovered 2 exits: [*Mat] / *Exi) -10/Exiles -9/Mines -8/Materials -7/Factory -7/DSF -6/Factory -5/Factory (discovered 3 exits: *Upp x2 / DSF) -5/Upper Caves -5/Upper Caves -5/Zhirov -4/Proximity Caves -4/Factory (discovered 4 exits: Upp x2 / *Ext x2) -4/Extension (discovered 3 exits: *Res x2 / *Cet) -4/Cetus (discovered 2 exits: *Res / [*Arc]) -3/Research (discovered 3 exits: Arm / Qua x2) History --------- Turn | Location | Event 4 | -11/Scrapyard | Discovered new exit (range 0) 4 | -11/Scrapyard | Entered Materials 120 | -10/Materials | Discovered new exit (range 8) 257 | -10/Materials | Discovered new exit (range 10) 308 | -10/Materials | Build established: Mutant 414 | -10/Materials | Discovered new exit (range 10) 542 | -10/Materials | Entered Mines 543 | -10/Mines | Met a Derelict testing a Signal Generator 548 | -10/Mines | Found Signal Generator 579 | -10/Mines | Excavation squad dispatched 579 | -10/Mines | A large section of the Mines collapsed 829 | -10/Mines | Excavation squad dispatched 974 | -10/Mines | Discovered new exit (range 5) 1147 | -10/Mines | Assisted by bots powering up and referring to "LRC-V3" 1559 | -10/Mines | Learned Materials terminal intel 1633 | -10/Mines | Deemed a non-threat by the Exiles lab entrance 1676 | -10/Mines | Met a Derelict who couldn't figure out how to use a Trap Extractor 1719 | -10/Mines | Discovered new exit (range 5) 1729 | -10/Mines | Entered Exiles 1729 | -10/Exiles | Accompanied by 3 allies 1777 | -10/Exiles | Met 8R-AWN 1809 | -10/Exiles | Met EX-HEX 1866 | -10/Exiles | Met EX-BIN 1887 | -10/Exiles | Aligned with FarCom system 1889 | -10/Exiles | Given EX-Vault access code 1933 | -10/Exiles | Opened EX-Vault 1948 | -10/Exiles | Found AWS/Autocannon 1988 | -10/Exiles | Warned to stay clear of 0b10 Research branches 2012 | -10/Exiles | Exiles lab attacked by MAIN.C 2083 | -10/Exiles | Learned location of Zion (-6) 2180 | -10/Exiles | Discovered new exit (range 10) 2195 | -10/Exiles | Left Exiles lab with AWS/Autocannon 2195 | -10/Exiles | Entered Mines 2195 | -9/Mines | Accompanied by 3 allies 2198 | -9/Mines | Discovered new exit (range 12) 2339 | -9/Mines | Received a Rocket Launcher from a helpful Derelict 2357 | -9/Mines | Assembled infested the area 2413 | -9/Mines | Lost 3 allies 2430 | -9/Mines | Lost 3 parts (1p1u1w) 2455 | -9/Mines | Core integrity fell below 50% 2487 | -9/Mines | Lost 3 parts (1u2w) 2498 | -9/Mines | Entered Materials 2498 | -8/Materials | Evolved 4 slots: Utility x3, Weapon x1 2499 | -8/Materials | Loaded intel: 12 terminal locations 2696 | -8/Materials | Destroyed 8 combat bots 2798 | -8/Materials | Core integrity fell below 50% 2803 | -8/Materials | Lost 7 parts (1p1n3u2w) 2832 | -8/Materials | Discovered new exit (range 8) 2836 | -8/Materials | Entered Factory 2836 | -7/Factory | Evolved 2 slots: Utility x2 2851 | -7/Factory | Identified exit to DSF 2851 | -7/Factory | Entered DSF 2873 | -7/DSF | Discovered new exit (range 12) 2883 | -7/DSF | Additional patrols routed to DSF 2936 | -7/DSF | Entered Factory 2936 | -6/Factory | Evolved 2 slots: Utility x2 3468 | -6/Factory | Discovered new exit (range 19) 3593 | -6/Factory | Build established: Scavenger-Assassin 3640 | -6/Factory | Entered another Factory area 3640 | -5/Factory | Evolved 2 slots: Utility x2 3714 | -5/Factory | Identified exit to DSF 3794 | -5/Factory | Identified exit to Upper Caves 3848 | -5/Factory | Entered Upper Caves 3974 | -5/Upper Caves | Learned location of Armory (-3) 4136 | -5/Upper Caves | Spotted B-75 Beast 4214 | -5/Upper Caves | Build established: Mutant 4457 | -5/Upper Caves | Discovered new exit (range 7) 4464 | -5/Upper Caves | Entered another Upper Caves area 4599 | -5/Upper Caves | Learned 4 Factory zone layouts 4642 | -5/Upper Caves | Learned Factory security intel 4874 | -5/Upper Caves | Discovered new exit (range 11) 4962 | -5/Upper Caves | Entered Zhirov 4962 | -5/Zhirov | Discovered new exit (range 3) 4993 | -5/Zhirov | Met Zhirov 5025 | -5/Zhirov | Learned location of Quarantine (-3) 5025 | -5/Zhirov | Learned location of Testing (-2) 5025 | -5/Zhirov | Learned location of Command (-1) 5058 | -5/Zhirov | Zhirov requested help retrieving the SGEMP Prototype 5089 | -5/Zhirov | Found Alien Artifact 5089 | -5/Zhirov | Identified Integrated Dissipator 5089 | -5/Zhirov | Installed Integrated Dissipator, increased core heat dissipation (+20) 5113 | -5/Zhirov | Found Alien Artifact 5235 | -5/Zhirov | Entered Proximity Caves 5241 | -4/Proximity Caves | Spotted B-86 Titan 5445 | -4/Proximity Caves | Build established: Hacker-Mutant 5453 | -4/Proximity Caves | Discovered new exit (range 7) 5456 | -4/Proximity Caves | Entered Factory 5456 | -4/Factory | Evolved 2 slots: Utility x2 5474 | -4/Factory | Lost 3 parts (1n1u1w) 5675 | -4/Factory | Identified exit to Upper Caves 5675 | -4/Factory | Identified exit to Extension 5995 | -4/Factory | Entered Extension 6016 | -4/Extension | Rescued a captive Derelict 6017 | -4/Extension | Rescued a captive Derelict 6137 | -4/Extension | Energy Cycler disabled 6137 | -4/Extension | Rescued a captive Derelict 6137 | -4/Extension | Rescued a captive Derelict 6137 | -4/Extension | Rescued a captive Derelict 6137 | -4/Extension | Rescued a captive Derelict 6137 | -4/Extension | Rescued a captive Derelict 6137 | -4/Extension | Rescued a captive Derelict 6137 | -4/Extension | Rescued a captive Derelict 6138 | -4/Extension | Rescued a captive Derelict 6139 | -4/Extension | Rescued a captive Derelict 6139 | -4/Extension | Rescued a captive Derelict 6140 | -4/Extension | Rescued A7 6153 | -4/Extension | Rescued a captive Derelict 6153 | -4/Extension | Rescued a captive Derelict 6266 | -4/Extension | Lost 5 allies 6285 | -4/Extension | Spotted B-86 Titan 6299 | -4/Extension | Spotted B-86 Titan 6306 | -4/Extension | Discovered new exit (range 20) 6326 | -4/Extension | Allies destroyed B-86 Titan 6333 | -4/Extension | Destroyed B-86 Titan 6345 | -4/Extension | Lost 7 allies 6495 | -4/Extension | First assault squad dispatched 6632 | -4/Extension | Lost 5 allies 6806 | -4/Extension | Lost 3 parts (3u) 6905 | -4/Extension | Discovered new exit (range 10) 6906 | -4/Extension | Discovered new exit (range 6) 6942 | -4/Extension | Entered Cetus 6942 | -4/Cetus | Accompanied by 2 allies 6969 | -4/Cetus | Spotted Cetus Guard 6969 | -4/Cetus | Spotted Cetus Guard 6976 | -4/Cetus | Spotted Cetus Guard 6978 | -4/Cetus | Allies destroyed Cetus Guard 6979 | -4/Cetus | Spotted Cetus Guard 6981 | -4/Cetus | Destroyed Cetus Guard 6993 | -4/Cetus | Destroyed Cetus Guard 6999 | -4/Cetus | Destroyed Cetus Guard 7080 | -4/Cetus | Lost 4 parts (1p1n2u) 7199 | -4/Cetus | Build established: Hacker-Gunner 7293 | -4/Cetus | Cetus Manufacturing Module disabled 7407 | -4/Cetus | Discovered new exit (range 22) 7443 | -4/Cetus | Spotted Cetus Guard 7445 | -4/Cetus | Spotted Cetus Guard 7448 | -4/Cetus | Spotted Cetus Guard 7448 | -4/Cetus | Spotted Cetus Guard 7518 | -4/Cetus | Destroyed Cetus Guard 7534 | -4/Cetus | Destroyed Cetus Guard 7563 | -4/Cetus | Destroyed Cetus Guard 7603 | -4/Cetus | Core integrity fell below 50% 7609 | -4/Cetus | Destroyed Cetus Guard 7643 | -4/Cetus | Lost 10 parts (1p2n4u3w) 7815 | -4/Cetus | Discovered new exit (range 21) 7846 | -4/Cetus | Met Revision 17 7892 | -4/Cetus | Build established: Scavenger-Mutant 7958 | -4/Cetus | Identified exit to Research 7969 | -4/Cetus | Entered Research 7969 | -3/Research | Evolved 2 slots: Utility x2 8090 | -3/Research | Spotted B-86 Titan 8110 | -3/Research | Spotted B-86 Titan 8223 | -3/Research | Build established: Scavenger-Scout 8274 | -3/Research | Identified exit to Armory 8274 | -3/Research | Identified exit to Quarantine 8347 | -3/Research | Core integrity fell below 50% 8352 | -3/Research | Lost 11 parts (1p2n7u1w) 8388 | -3/Research | Core integrity fell below 20% 8396 | -3/Research | System corruption reached 10% 8403 | -3/Research | Destroyed by P-80 Master with Gamma Rifle Last Messages --------------- 08345_ Field strength at 57. 08346_ Penetrated by Slug. 08346_ Field strength at 32. 08347_ Field strength at 26. 08348_ Field strength at 6. 08349_ Stasis field depleted. 08349_ Knocked back. 08349_ Penetrated by Slug. 08352_ Slug penetrates Wall. 08373_ Slammed into P-80 Master. 08376_ System corrupted: Component data lost. 08376_ Slammed into P-80 Master. 08376_ Enh. Optical Array destroyed. 08376_ System corrupted by crushing effect (+4). 08377_ Slammed into P-80 Master. 08392_ Adv. Signal Interpreter destroyed. 08399_ Slug penetrates Wall. 08400_ Drone sends a signal. 08402_ System corrupted: Component data lost. 08402_ Acquired Biometal Leg. Map ----- +----------------------------------------------------+ | ???????????????# ![[ # #?????????? | | ???????????????##" ![ ######+####?????????? | | ?????????????????" #????# #????????????? | | ?????????????????" ######+###??????????? | | ?????????????????# # #??????????? | | ?????????????????# % # #??????????? | | ?????????????????#u # #??????????? | | ?????????????????# # #??????????? | | ?????????????????# # #??????????? | | ?????????????????#BB """ # #??????????? | | ?????????????????#BB """ # #??????????? | | ?????????????????# """ + #??????????? | | ?????????????????# """ # #??????????? | | ?????????????????#k """ ###########?????????? | | ?????????????????# """ *# #?????????? | | ????############## """k # #?????????? | | ????# # # #?????????? | | ????# # # #?????????? | | ????# "" # + #?????????? | | ????# """; # ! #?????????? | | ????# """ S"# w # #?????????? | | ????# """ """# t # #?????????? | | ????# """ """# ###########?????????? | | ????# """ p /p =!! #?????###???????????? | | ????# """ # =! #?????###???????????? | | ????# # !!@ #?????####??????????? | | ????# ## ##### #?????## ##?????????? | | ????# ## #?#?# ###########?????????? | | ????###############"##### # ! w ##?????????? | | ??????????????# # # #??????????? | | ??????????????# # # #??????????? | | ??????????????# # # #??????????? | | ??????????????# + + #??????????? | | ??????????????# # # #??????????? | | ??????????????# #s # #??????????? | | ??????????????# # ss # #??????????? | | ??????????????# # # #??????????? | | ??????????????########### ##########??????????? | | ????????????????????????# ##??????????????????? | | ????????????????????????# #???????????????????? | | ????????????????????????# #???????????????????? | | ????????????????????????# ##########??????????? | | ????????????????????????# # #??????????? | | ????????????????????????# # #??????????? | | ????????????????????????# # ]] #??????????? | | ????????????????????????# # ]] #??????????? | | ????????????????????????+ + ]] #??????????? | | ????????????????????????# # #??????????? | | ????????????????????????# # #??????????? | | ????????????????????????# # #??????????? | +----------------------------------------------------+ Best States ------------- Heat Dissipation 101 Energy Generation 25 Energy Capacity 315 Matter Stores 300 Matter Capacity 300 Sight Range 22 Robot Scan Range 18 Terrain Scan Density 410 Jamming Range 16 Power Amplification 30 Armor Coverage 1350 Resistance: KI 20 Utility Shielding 90 Evasion (%) 63 Targeting Accuracy 6 Melee Accuracy 14 Launcher Accuracy 150 Offensive Hacking 14 Defensive Hacking 26 Item Schematics ----------------- Assault Drone Bay | -5/Zhirov | Free Exp. Heat Sink | -5/Zhirov | Free Exp. Optical Array | -5/Zhirov | Free Imp. Arc Thrower | -5/Zhirov | Free Robot Schematics ------------------ None Fabricated ------------ Nothing Alien Tech Used ----------------- Integrated Dissipator Achievements -------------- None Challenges ------------ None Game ------ Seed CompactCoilArchive Manual? 0 Play Time 01:35:55 Cumulative 187.8 hours Start 2024.03.30 @ 13:44:43 End 2024.03.30 @ 22:00:14 Sessions 3 Manual Loads 0 Difficulty Rogue Special Mode None Game No. 196 Rogue 196 Adventurer 0 Explorer 0 Win Type - Total 3 Types 3/0/0/0/0/0/0/0/0 Lore% 61 Gallery% 74 Achievement% 59 Wizard Run 0 Options --------- Layout 1 ASCII 0 Keyboard 0 Movement Numpad Keybinds 0 Fullscreen 2 Font 24/Smallcaps Map View 50x35 Zoom Use 0% Tactical HUD 1 Map Filters NONE Filters NONE Steam 1 RUN: 91e762b1-cce7-4d5b-bf64-1eaa1d890ca2